lending/lending_fUSD_20250913
["ID","MTS","AMOUNT","RATE_DAILY","PERIOD"]
[385286686,1757748641037,-400.0,0.00031852,2]
[385286687,1757748641046,-1050.42,0.00031852,2]
[385286688,1757748641055,-400.0,0.00031852,2]
[385286689,1757748641064,-1639.52,0.00031852,2]
[385286690,1757748641073,-400.0,0.00031852,2]
[385286691,1757748641082,-400.0,0.00031852,2]
[385286692,1757748641091,-400.0,0.00031852,2]
[385286693,1757748641100,-400.0,0.00031852,2]
[385286694,1757748641109,-972.09,0.00031852,2]
[385286695,1757748641118,-403.82716226,0.00031852,2]
[385286696,1757748641127,-235.20479733,0.00031852,2]
[385286697,1757748641136,-400.0,0.00031852,2]
[385286698,1757748641144,-820.12,0.00031852,2]
[385286699,1757748641153,-405.08273349,0.00031852,2]
[385286700,1757748641162,-400.0,0.00031852,2]
[385286701,1757748641171,-145.42751622,0.00031852,2]
[385286707,1757748645979,-590.62,0.00031843,2]
[385286708,1757748645988,-254.57248378,0.00031852,2]
[385286709,1757748645997,-400.0,0.00031852,2]
[385286710,1757748646006,-462.11213259,0.00031852,2]
[385286711,1757748646015,-1083.02,0.00031852,2]
[385286712,1757748646025,-400.0,0.00031852,2]
[385286713,1757748646035,-400.0,0.00031852,2]
[385286714,1757748646045,-400.0,0.00031852,2]
[385286715,1757748646054,-400.0,0.00031852,2]
[385286716,1757748646064,-709.69,0.00031852,2]
[385286717,1757748646073,-704.25,0.00031852,2]
[385286718,1757748646082,-568.2,0.00031852,2]
[385286719,1757748646091,-400.0,0.00031852,2]
[385286720,1757748646101,-400.0,0.00031852,2]
[385286721,1757748646110,-400.0,0.00031852,2]
[385286722,1757748646120,-400.0,0.00031852,2]
[385286723,1757748646129,-8554.35,0.00031852,2]
[385286724,1757748646139,-400.0,0.00031852,2]
[385286725,1757748646148,-532.66,0.00031852,2]
[385286726,1757748646158,-427.74,0.00031852,2]
[385286727,1757748646167,-400.0,0.00031852,2]
[385286728,1757748646176,-400.0,0.00031852,2]
[385286729,1757748646186,-740.88,0.00031852,2]
[385286730,1757748646195,-400.0,0.00031852,2]
[385286731,1757748646204,-303.01119473,0.00031852,2]
[385286732,1757748646213,-521.58,0.00031852,2]
[385286733,1757748646222,-400.0,0.00031852,2]
[385286734,1757748646231,-458.44,0.00031852,2]
[385286735,1757748646240,-400.0,0.00031852,2]
[385286736,1757748646249,-400.0,0.00031852,2]
[385286737,1757748646258,-809.17688747,0.00031853,2]
[385286738,1757748646267,-400.0,0.00031853,2]
[385286739,1757748646277,-400.0,0.00031853,2]
[385286740,1757748646286,-400.0,0.00031853,2]
[385286741,1757748646296,-400.0,0.00031853,2]
[385286742,1757748646305,-400.0,0.00031853,2]
[385286743,1757748646315,-400.0,0.00031853,2]
[385286744,1757748646325,-400.0,0.00031853,2]
[385286745,1757748646334,-400.0,0.00031853,2]
[385286746,1757748646343,-400.0,0.00031853,2]
[385286747,1757748646352,-400.0,0.00031853,2]
[385286748,1757748646362,-400.0,0.00031853,2]
[385286749,1757748646371,-400.0,0.00031853,2]
[385286750,1757748646380,-401.94167512,0.00031853,2]
[385286751,1757748646390,-504.68,0.00031853,2]
[385286752,1757748646399,-400.0,0.00031853,2]
[385286753,1757748646409,-151.0,0.00031853,7]
[385286754,1757748646418,-151.0,0.00031853,7]
[385286755,1757748646427,-151.0,0.00031853,7]
[385286756,1757748646437,-151.0,0.00031853,7]
[385286757,1757748646446,-151.0,0.00031853,7]
[385286758,1757748646455,-151.0,0.00031853,7]
[385286759,1757748646465,-402.19838557,0.00031853,2]
[385286760,1757748646474,-151.0,0.00031853,7]
[385286761,1757748646484,-151.0,0.00031853,7]
[385286762,1757748646493,-401.57958865,0.00031853,2]
[385286763,1757748646502,-151.0,0.00031853,7]
[385286764,1757748646512,-222.855496,0.00031853,7]
[385286765,1757748646521,-400.0,0.00031853,2]
[385286766,1757748646531,-400.0,0.00031853,2]
[385286767,1757748646540,-400.0,0.00031853,2]
[385286769,1757748646550,-184.303525,0.00031853,7]
[385286770,1757748646559,-400.0,0.00031853,2]
[385286771,1757748646569,-400.0,0.00031853,2]
[385286772,1757748646578,-400.23366027,0.00031853,2]
[385286773,1757748646587,-400.0,0.00031853,2]
[385286774,1757748646596,-400.0,0.00031853,2]
[385286775,1757748646605,-402.12816801,0.00031853,2]
[385286777,1757748646614,-400.0,0.00031853,2]
[385286779,1757748646623,-402.21731331,0.00031853,2]
[385286781,1757748646633,-400.0,0.00031853,2]
[385286783,1757748646642,-422.25,0.00031853,2]
[385286785,1757748646651,-402.46141662,0.00031853,2]
[385286786,1757748646660,-400.0,0.00031853,2]
[385286787,1757748646669,-401.33007347,0.00031853,2]
[385286788,1757748646678,-401.91328289,0.00031853,2]
[385286789,1757748646687,-702.61,0.00031853,2]
[385286790,1757748646696,-400.0,0.00031853,2]
[385286791,1757748646707,-400.0,0.00031853,2]
[385286792,1757748646718,-400.0,0.00031853,2]
[385286793,1757748646727,-400.0,0.00031853,2]
[385286794,1757748646737,-151.0,0.00031853,7]
[385286795,1757748646746,-400.0,0.00031853,2]
[385286796,1757748646756,-400.0,0.00031853,2]
[385286797,1757748646765,-400.0,0.00031853,2]
[385286798,1757748646776,-400.0,0.00031853,2]
[385286799,1757748646785,-400.0,0.00031853,2]
[385286800,1757748646795,-400.0,0.00031853,2]
[385286801,1757748646804,-400.0,0.00031853,2]
[385286802,1757748646813,-400.0,0.00031853,2]
[385286803,1757748646823,-400.0,0.00031853,2]
[385286804,1757748646832,-400.0,0.00031853,2]
[385286805,1757748646842,-400.0,0.00031853,2]
[385286806,1757748646852,-400.0,0.00031853,2]
[385286807,1757748646862,-400.0,0.00031853,2]
[385286808,1757748646871,-400.0,0.00031853,2]
[385286809,1757748646881,-400.0,0.00031853,2]
[385286810,1757748646890,-400.0,0.00031853,2]
[385286811,1757748646901,-364.1065827,0.00031853,2]
[385286812,1757748646910,-400.0,0.00031853,2]
[385286813,1757748646920,-509.25,0.00031853,2]
[385286814,1757748646930,-151.625733,0.00031853,7]
[385286815,1757748646940,-400.0,0.00031853,2]
[385286816,1757748646950,-400.0,0.00031853,2]
[385286817,1757748646960,-400.0,0.00031853,2]
[385286818,1757748646970,-400.0,0.00031853,2]
[385286819,1757748646979,-400.0,0.00031853,2]
[385286820,1757748646988,-975.43,0.00031853,2]
[385286821,1757748646998,-400.0,0.00031853,2]
[385286822,1757748647007,-400.0,0.00031853,2]
[385286823,1757748647016,-400.0,0.00031853,2]
[385286824,1757748647025,-400.0,0.00031853,2]
[385286825,1757748647034,-400.0,0.00031853,2]
[385286826,1757748647043,-400.0,0.00031853,2]
[385286827,1757748647053,-400.0,0.00031853,2]
[385286828,1757748647062,-400.0,0.00031853,2]
[385286829,1757748647071,-1243.62,0.00031853,2]
[385286830,1757748647081,-400.0,0.00031853,2]
[385286831,1757748647090,-400.0,0.00031853,2]
[385286832,1757748647100,-877.7,0.00031853,2]
[385286833,1757748647109,-401.74235083,0.00031853,2]
[385286834,1757748647120,-896.96,0.00031853,2]
[385286835,1757748647130,-402.06955537,0.00031853,2]
[385286836,1757748647140,-541.79,0.00031853,2]
[385286837,1757748647150,-1000.98,0.00031853,2]
[385286838,1757748647161,-576.17,0.00031853,2]
[385286839,1757748647171,-524.46,0.00031853,2]
[385286840,1757748647180,-400.0,0.00031853,2]
[385286841,1757748647193,-651.65,0.00031853,2]
[385286842,1757748647209,-400.0,0.00031853,2]
[385286843,1757748647232,-775.02,0.00031853,2]
[385286844,1757748647242,-562.06,0.00031853,2]
[385286845,1757748647251,-408.43885355,0.00031853,2]
[385286846,1757748647261,-151.0,0.00031853,7]
[385286847,1757748647270,-213.496194,0.00031853,7]
[385286848,1757748647279,-506.35,0.00031853,2]
[385286849,1757748647288,-1813.0,0.00031853,2]
[385286850,1757748647298,-151.0,0.00031853,7]
[385286851,1757748647307,-151.0,0.00031853,7]
[385286852,1757748647316,-151.0,0.00031853,7]
[385286853,1757748647325,-151.0,0.00031853,7]
[385286854,1757748647335,-650.69,0.00031853,2]
[385286855,1757748647568,-600.18,0.00031853,2]
[385286856,1757748647578,-733.16,0.00031853,2]
[385286857,1757748647588,-786.34,0.00031853,2]
[385286858,1757748647598,-400.0,0.00031853,2]
[385286859,1757748647607,-765.11,0.00031853,2]
[385286860,1757748647617,-1431.32,0.00031853,2]
[385286861,1757748647626,-151.0,0.00031853,7]
[385286862,1757748647636,-574.98,0.00031853,2]
[385286863,1757748647645,-757.73,0.00031853,2]
[385286864,1757748647655,-765.15,0.00031853,2]
[385286865,1757748647664,-597.61,0.00031853,2]
[385286866,1757748647674,-151.0,0.00031853,7]
[385286867,1757748647684,-2534.59,0.00031853,2]
[385286868,1757748647694,-738.03,0.00031853,2]
[385286869,1757748647704,-581.03,0.00031853,2]
[385286870,1757748647714,-635.17,0.00031853,2]
[385286871,1757748647723,-683.92,0.00031853,2]
[385286872,1757748647734,-481.75,0.00031853,2]
[385286873,1757748647743,-573.73,0.00031853,2]
[385286874,1757748647752,-1900.77,0.00031853,2]
[385286875,1757748647762,-400.0,0.00031853,2]
[385286876,1757748647774,-3246.57,0.00031853,2]
[385286877,1757748647786,-457.56,0.00031853,2]
[385286878,1757748647796,-400.0,0.00031853,2]
[385286879,1757748647806,-750.15,0.00031853,2]
[385286880,1757748647818,-2705.25,0.00031853,2]
[385286881,1757748647828,-665.01,0.00031853,2]
[385286882,1757748647838,-813.96,0.00031853,2]
[385286883,1757748647849,-661.13,0.00031853,2]
[385286884,1757748647860,-2012.71,0.00031853,2]
[385286885,1757748647869,-1121.98,0.00031853,2]
[385286886,1757748647878,-400.0,0.00031854,2]
[385286887,1757748647887,-400.0,0.00031854,2]
[385286888,1757748647896,-400.0,0.00031854,2]
[385286889,1757748647907,-400.0,0.00031854,2]
[385286890,1757748647916,-400.0,0.00031854,2]
[385286891,1757748647925,-400.0,0.00031854,2]
[385286892,1757748647935,-334.36287565,0.00031854,2]
[385286893,1757748647946,-401.14216302,0.00031854,2]
[385286894,1757748647955,-400.0,0.00031854,2]
[385286895,1757748647965,-400.0,0.00031854,2]
[385286896,1757748647974,-400.0,0.00031854,2]
[385286897,1757748647983,-400.0,0.00031854,2]
[385286898,1757748647993,-400.0,0.00031854,2]
[385286899,1757748648002,-400.0,0.00031854,2]
[385286900,1757748648012,-400.0,0.00031854,2]
[385286901,1757748648022,-400.0,0.00031854,2]
[385286902,1757748648031,-400.0,0.00031854,2]
[385286903,1757748648040,-400.0,0.00031854,2]
[385286904,1757748648050,-400.0,0.00031854,2]
[385286905,1757748648059,-400.0,0.00031854,2]
[385286906,1757748648068,-407.80415725,0.00031854,2]
[385286907,1757748648077,-400.0,0.00031854,2]
[385286908,1757748648086,-400.0,0.00031854,2]
[385286909,1757748648095,-400.0,0.00031854,2]
[385286910,1757748648105,-400.0,0.00031854,2]
[385286911,1757748648114,-400.0,0.00031854,2]
[385286912,1757748648122,-400.0,0.00031854,2]
[385286913,1757748648131,-400.0,0.00031854,2]
[385286914,1757748648141,-400.0,0.00031854,2]
[385286915,1757748648150,-400.0,0.00031854,2]
[385286916,1757748648159,-400.0,0.00031854,2]
[385286917,1757748648168,-402.45866745,0.00031854,2]
[385286918,1757748648178,-500.0,0.00031854,2]
[385286919,1757748648188,-400.0,0.00031854,2]
[385286920,1757748648198,-500.0,0.00031854,2]
[385286921,1757748648207,-400.0,0.00031854,2]
[385286922,1757748648216,-400.0,0.00031854,2]
[385286923,1757748648226,-400.0,0.00031854,2]
[385286924,1757748648235,-400.0,0.00031854,2]
[385286925,1757748648244,-400.0,0.00031854,2]
[385286926,1757748648253,-400.0,0.00031854,2]
[385286927,1757748648263,-277.22260012,0.00031854,2]
[385286928,1757748648273,-400.0,0.00031854,2]
[385286929,1757748648282,-400.0,0.00031854,2]
[385286930,1757748648292,-400.0,0.00031854,2]
[385286931,1757748648302,-499.73825716,0.00031854,2]
[385286932,1757748648312,-700.42,0.00031854,2]
[385286933,1757748648321,-400.0,0.00031854,2]
[385286934,1757748648330,-400.0,0.00031854,2]
[385286935,1757748648340,-1780.89,0.00031854,2]
[385286936,1757748648349,-400.0,0.00031854,2]
[385286937,1757748648359,-400.0,0.00031854,2]
[385286938,1757748648368,-400.0,0.00031854,2]
[385286939,1757748648377,-400.0,0.00031854,2]
[385286940,1757748648387,-455.22,0.00031854,2]
[385286941,1757748648396,-400.0,0.00031854,2]
[385286942,1757748648406,-598.71,0.00031854,2]
[385286943,1757748648415,-400.0,0.00031854,2]
[385286944,1757748648425,-564.93,0.00031854,2]
[385286945,1757748648434,-400.0,0.00031854,2]
[385286946,1757748648444,-990.4,0.00031854,2]
[385286947,1757748648454,-400.0,0.00031854,2]
[385286948,1757748648463,-400.0,0.00031854,2]
[385286949,1757748648473,-400.0,0.00031854,2]
[385286950,1757748648482,-819.45,0.00031854,2]
[385286951,1757748648492,-400.0,0.00031854,2]
[385286952,1757748648501,-400.0,0.00031854,2]
[385286953,1757748648510,-1168.04,0.00031854,2]
[385286954,1757748648520,-400.0,0.00031854,2]
[385286955,1757748648529,-862.67,0.00031854,2]
[385286956,1757748648539,-400.0,0.00031854,2]
[385286957,1757748648548,-550.71,0.00031854,2]
[385286958,1757748648558,-400.0,0.00031854,2]
[385286959,1757748648568,-595.5,0.00031854,2]
[385286960,1757748648577,-587.02,0.00031854,2]
[385286961,1757748648586,-1122.85,0.00031854,2]
[385286962,1757748648595,-401.83441962,0.00031854,2]
[385286963,1757748648605,-400.0,0.00031854,2]
[385286964,1757748648614,-828.77,0.00031854,2]
[385286965,1757748648624,-400.0,0.00031854,2]
[385286966,1757748648633,-402.39344589,0.00031854,2]
[385286967,1757748648642,-403.9,0.00031854,2]
[385286968,1757748648651,-151.0,0.00031854,7]
[385286969,1757748648660,-866.96,0.00031854,2]
[385286970,1757748648669,-674.44,0.00031854,2]
[385286971,1757748648679,-588.24,0.00031854,2]
[385286972,1757748648689,-400.0,0.00031854,2]
[385286973,1757748648698,-151.0,0.00031854,7]
[385286974,1757748648708,-151.0,0.00031854,7]
[385286975,1757748648717,-772.92,0.00031854,2]
[385286976,1757748648726,-151.0,0.00031854,7]
[385286977,1757748648735,-151.0,0.00031854,7]
[385286978,1757748648744,-151.0,0.00031854,7]
[385286979,1757748648754,-151.0,0.00031854,7]
[385286980,1757748648763,-151.0,0.00031854,7]
[385286981,1757748648775,-151.0,0.00031854,7]
[385286982,1757748648789,-400.0,0.00031854,2]
[385286983,1757748648798,-872.74,0.00031854,2]
[385286984,1757748648808,-508.55,0.00031854,2]
[385286985,1757748648818,-739.62,0.00031854,2]
[385286986,1757748648827,-400.0,0.00031854,2]
[385286987,1757748648836,-605.68,0.00031854,2]
[385286988,1757748648846,-601.71,0.00031854,2]
[385286989,1757748648855,-924.77,0.00031854,2]
[385286990,1757748648865,-400.0,0.00031854,2]
[385286991,1757748648874,-400.0,0.00031854,2]
[385286992,1757748648884,-566.07,0.00031854,2]
[385286993,1757748648897,-512.86,0.00031854,2]
[385286994,1757748648911,-492.92,0.00031854,2]
[385286995,1757748648920,-1000.0,0.00031854,2]
[385286996,1757748648930,-400.0,0.00031854,2]
[385286997,1757748648939,-400.0,0.00031854,2]
[385286998,1757748648948,-715.76,0.00031854,2]
[385286999,1757748648958,-400.0,0.00031854,2]
[385287000,1757748648968,-400.0,0.00031854,2]
[385287001,1757748648978,-688.82,0.00031854,2]
[385287002,1757748648988,-863.48,0.00031854,2]
[385287003,1757748648998,-1628.220877,0.00031854,7]
[385287004,1757748649007,-1628.220877,0.00031854,7]
[385287005,1757748649016,-1628.220877,0.00031854,7]
[385287006,1757748649026,-1628.220877,0.00031854,7]
[385287007,1757748649036,-1628.220877,0.00031854,7]
[385287008,1757748649047,-1628.220877,0.00031854,7]
[385287009,1757748649056,-1628.220877,0.00031854,7]
[385287010,1757748649066,-1628.220877,0.00031854,7]
[385287011,1757748649075,-1628.220877,0.00031854,7]
[385287012,1757748649085,-1628.220877,0.00031854,7]
[385287013,1757748649094,-1628.220877,0.00031854,7]
[385287014,1757748649103,-1628.220877,0.00031854,7]
[385287015,1757748649113,-400.0,0.00031854,2]
[385287016,1757748649122,-634.07,0.00031854,2]
[385287017,1757748649131,-400.0,0.00031854,2]
[385287018,1757748649140,-151.0,0.00031854,7]
[385287019,1757748649150,-151.0,0.00031854,7]
[385287020,1757748649160,-500.0,0.00031854,2]
[385287021,1757748649170,-500.0,0.00031854,2]
[385287022,1757748649179,-601.59,0.00031854,2]
[385287023,1757748649189,-400.0,0.00031854,2]
[385287024,1757748649199,-400.0,0.00031854,2]
[385287025,1757748649209,-718.21,0.00031854,2]
[385287026,1757748649219,-400.0,0.00031854,2]
[385287027,1757748649228,-500.0,0.00031854,2]
[385287028,1757748649238,-500.0,0.00031854,2]
[385287029,1757748649247,-2483.25,0.00031854,2]
[385287030,1757748649257,-400.0,0.00031854,2]
[385287031,1757748649267,-400.0,0.00031854,2]
[385287032,1757748649276,-593.48,0.00031854,2]
[385287033,1757748649286,-400.0,0.00031854,2]
[385287034,1757748649297,-400.0,0.00031854,2]
[385287035,1757748649306,-400.0,0.00031854,2]
[385287036,1757748649316,-548.9,0.00031854,2]
[385287037,1757748649326,-400.0,0.00031854,2]
[385287038,1757748649335,-1274.67,0.00031854,2]
[385287039,1757748649345,-757.06,0.00031854,2]
[385287040,1757748649355,-645.36,0.00031854,2]
[385287041,1757748649364,-1760.5,0.00031854,2]
[385287042,1757748649374,-454.06,0.00031854,2]
[385287043,1757748649385,-948.01,0.00031854,2]
[385287044,1757748649394,-571.14,0.00031854,2]
[385287045,1757748649404,-400.0,0.00031854,2]
[385287046,1757748649414,-524.3,0.00031854,2]
[385287047,1757748649424,-400.0,0.00031854,2]
[385287048,1757748649434,-400.0,0.00031854,2]
[385287049,1757748649443,-551.99,0.00031854,2]
[385287050,1757748649453,-400.0,0.00031854,2]
[385287051,1757748649462,-1131.69,0.00031854,2]
[385287052,1757748649472,-502.03,0.00031854,2]
[385287053,1757748649482,-732.3,0.00031854,2]
[385287054,1757748649491,-788.05,0.00031854,2]
[385287055,1757748649501,-788.05,0.00031854,2]
[385287056,1757748649511,-754.73,0.00031854,2]
[385287057,1757748649521,-595.3,0.00031854,2]
[385287058,1757748649531,-544.04,0.00031854,2]
[385287059,1757748649541,-415.43,0.00031854,2]
[385287060,1757748649551,-562.66,0.00031854,2]
[385287061,1757748649560,-533.27,0.00031854,2]
[385287062,1757748649570,-400.0,0.00031854,2]
[385287063,1757748649579,-400.0,0.00031854,2]
[385287064,1757748649588,-739.4,0.00031854,2]
[385287065,1757748649598,-400.0,0.00031854,2]
[385287066,1757748649607,-588.99,0.00031854,2]
[385287067,1757748649616,-930.45,0.00031854,2]
[385287068,1757748649626,-1785.16,0.00031854,2]
[385287069,1757748649636,-623.57,0.00031854,2]
[385287070,1757748649646,-970.81,0.00031854,2]
[385287071,1757748649655,-400.0,0.00031854,2]
[385287072,1757748649665,-400.0,0.00031854,2]
[385287073,1757748649674,-676.96,0.00031854,2]
[385287074,1757748649683,-984.24,0.00031854,2]
[385287075,1757748649692,-400.0,0.00031854,2]
[385287076,1757748649702,-2151.96,0.00031854,2]
[385287077,1757748649711,-401.34350244,0.00031854,2]
[385287078,1757748649721,-400.0,0.00031854,2]
[385287079,1757748649731,-400.0,0.00031854,2]
[385287080,1757748649741,-400.0,0.00031854,2]
[385287081,1757748649752,-521.51,0.00031854,2]
[385287082,1757748649763,-858.94,0.00031854,2]
[385287083,1757748649772,-643.51,0.00031854,2]
[385287084,1757748649786,-633.58,0.00031854,2]
[385287085,1757748649795,-400.0,0.00031854,2]
[385287086,1757748649805,-400.0,0.00031854,2]
[385287087,1757748649815,-906.4,0.00031854,2]
[385287088,1757748649827,-400.0,0.00031854,2]
[385287089,1757748649838,-694.37,0.00031854,2]
[385287090,1757748649848,-2588.23,0.00031854,2]
[385287091,1757748649858,-1136.3,0.00031854,2]
[385287092,1757748649867,-940.38,0.00031854,2]
[385287093,1757748649877,-1754.94,0.00031854,2]
[385287094,1757748649886,-516.24,0.00031854,2]
[385287095,1757748649896,-910.51,0.00031854,2]
[385287096,1757748649905,-910.51,0.00031854,2]
[385287097,1757748649914,-798.93,0.00031854,2]
[385287098,1757748649923,-638.63,0.00031854,2]
[385287099,1757748649932,-400.0,0.00031854,2]
[385287100,1757748649942,-832.21,0.00031854,2]
[385287101,1757748649952,-829.57,0.00031854,2]
[385287102,1757748649961,-1246.48,0.00031854,2]
[385287103,1757748649971,-500.0,0.00031854,5]
[385287104,1757748649980,-401.81227828,0.00031854,2]
[385287105,1757748649989,-400.0,0.00031854,2]
[385287106,1757748649999,-400.0,0.00031854,2]
[385287107,1757748650008,-502.1750583,0.00031854,2]
[385287108,1757748650017,-400.0,0.00031854,2]
[385287109,1757748650026,-400.0,0.00031854,2]
[385287110,1757748650036,-400.0,0.00031854,2]
[385287111,1757748650045,-646.41,0.00031854,2]
[385287112,1757748650055,-829.76,0.00031854,2]
[385287113,1757748650064,-400.0,0.00031854,2]
[385287114,1757748650074,-772.39085961,0.00031854,2]
[385287115,1757748650083,-400.0,0.00031854,2]
[385287116,1757748650093,-850.86,0.00031854,2]
[385287117,1757748650103,-400.0,0.00031854,2]
[385287118,1757748650113,-512.30182772,0.00031854,2]
[385287119,1757748650122,-400.0,0.00031854,2]
[385287120,1757748650131,-400.0,0.00031854,2]
[385287121,1757748650141,-655.38,0.00031854,2]
[385287122,1757748650151,-400.0,0.00031854,2]
[385287123,1757748650161,-400.0,0.00031854,2]
[385287124,1757748650170,-400.0,0.00031854,2]
[385287125,1757748650179,-746.99,0.00031854,2]
[385287126,1757748650189,-400.0,0.00031854,2]
[385287127,1757748650198,-400.0,0.00031854,2]
[385287128,1757748650207,-430.52,0.00031854,2]
[385287129,1757748650217,-2142.58,0.00031854,2]
[385287130,1757748650226,-400.0,0.00031854,2]
[385287131,1757748650237,-400.0,0.00031854,2]
[385287132,1757748650246,-400.0,0.00031854,2]
[385287133,1757748650256,-400.0,0.00031854,2]
[385287134,1757748650265,-400.0,0.00031854,2]
[385287135,1757748650275,-1344.54,0.00031854,2]
[385287136,1757748650284,-400.0,0.00031855,2]
[385287137,1757748650293,-400.0,0.00031855,2]
[385287138,1757748650304,-400.0,0.00031855,2]
[385287139,1757748650314,-400.0,0.00031855,2]
[385287140,1757748650323,-400.0,0.00031855,2]
[385287141,1757748650333,-400.0,0.00031855,2]
[385287142,1757748650343,-400.0,0.00031855,2]
[385287143,1757748650352,-400.0,0.00031855,2]
[385287144,1757748650362,-400.0,0.00031855,2]
[385287145,1757748650371,-400.0,0.00031855,2]
[385287146,1757748650380,-400.0,0.00031855,2]
[385287147,1757748650389,-400.0,0.00031855,2]
[385287148,1757748650398,-403.02292395,0.00031855,2]
[385287149,1757748650409,-400.0,0.00031855,2]
[385287150,1757748650418,-400.0,0.00031855,2]
[385287151,1757748650428,-400.0,0.00031855,2]
[385287152,1757748650438,-400.0,0.00031855,2]
[385287153,1757748650447,-400.0,0.00031855,2]
[385287154,1757748650457,-400.0,0.00031855,2]
[385287155,1757748650467,-400.0,0.00031855,2]
[385287156,1757748650475,-206.02355847,0.00031855,2]
[385287157,1757748650485,-402.96610592,0.00031855,2]
[385287158,1757748650494,-400.0,0.00031855,2]
[385287159,1757748650504,-400.0,0.00031855,2]
[385287160,1757748650517,-422.78,0.00031855,2]
[385287161,1757748650537,-400.0,0.00031855,2]
[385287162,1757748650550,-400.0,0.00031855,2]
[385287163,1757748650559,-400.0,0.00031855,2]
[385287164,1757748650569,-400.0,0.00031855,2]
[385287165,1757748650578,-400.0,0.00031855,2]
[385287166,1757748650588,-400.0,0.00031855,2]
[385287167,1757748650597,-400.0,0.00031855,2]
[385287168,1757748650607,-400.0,0.00031855,2]
[385287169,1757748650616,-400.0,0.00031855,2]
[385287170,1757748650625,-400.0,0.00031855,2]
[385287171,1757748650635,-400.0,0.00031855,2]
[385287172,1757748650644,-400.0,0.00031855,2]
[385287173,1757748650653,-448.4,0.00031855,2]
[385287174,1757748650662,-400.0,0.00031855,2]
[385287175,1757748650671,-400.0,0.00031855,2]
[385287176,1757748650680,-400.0,0.00031855,2]
[385287177,1757748650689,-400.0,0.00031855,2]
[385287178,1757748650698,-400.0,0.00031855,2]
[385287179,1757748650707,-400.0,0.00031855,2]
[385287180,1757748650717,-400.0,0.00031855,2]
[385287181,1757748650726,-400.0,0.00031855,2]
[385287182,1757748650735,-400.0,0.00031855,2]
[385287183,1757748650745,-400.0,0.00031855,2]
[385287184,1757748650753,-400.0,0.00031855,2]
[385287185,1757748650763,-630.48,0.00031855,2]
[385287186,1757748650963,-400.0,0.00031855,2]
[385287187,1757748650973,-400.0,0.00031855,2]
[385287188,1757748650983,-401.93906615,0.00031855,2]
[385287189,1757748650992,-400.0,0.00031855,2]
[385287190,1757748651001,-400.0,0.00031855,2]
[385287191,1757748651011,-400.0,0.00031855,2]
[385287192,1757748651020,-446.87,0.00031855,2]
[385287193,1757748651030,-400.0,0.00031855,2]
[385287194,1757748651039,-500.0,0.00031855,2]
[385287195,1757748651049,-500.0,0.00031855,2]
[385287196,1757748651058,-483.63,0.00031855,2]